bitfinex/quotes_SOLUSD_20251124
["timestamp","ask_amount","ask_price","bid_price","bid_amount"]
[1764004891151,19.668864,134.55,134.5,12.0576106]
[1764004891325,12.0576106,134.54,134.49,12.0576106]
[1764004891514,0.68,134.59,134.52,12.0576106]
[1764004891715,0.68,134.59,134.5,10.48882769]
[1764004891716,12.0576106,134.57,134.51,12.0576106]
[1764004891922,12.0576106,134.56,134.51,0.7]
[1764004892121,3.36,134.58,134.51,0.7]
[1764004892327,0.68,134.56,134.5,10.48882769]
[1764004892612,12.0576106,134.53,134.47,12.7576106]
[1764004892832,3.36,134.54,134.48,12.0576106]
[1764004893142,12.0576106,134.53,134.48,12.7576106]
[1764004893341,15.4176106,134.54,134.49,12.0576106]
[1764004893756,3.36,134.54,134.43,68.59672963]
[1764004894056,12.0576106,134.49,134.45,0.7]
[1764004894228,15.4176106,134.49,134.44,9.78882769]
[1764004894421,12.0576106,134.48,134.45,0.7]
[1764004894885,3.36,134.49,134.45,0.7]
[1764004895214,16.308864,134.5,134.46,12.0576106]
[1764004895415,0.68,134.56,134.49,21.84643829]
[1764004895630,15.4176106,134.58,134.53,12.0576106]
[1764004896178,3.36,134.58,134.53,12.7576106]
[1764004896366,3.36,134.58,134.5,0.7]
[1764004896367,0.68,134.57,134.5,0.7]
[1764004896686,28.3664746,134.58,134.53,12.0576106]
[1764004896843,0.68,134.61,134.55,12.0576106]
[1764004897048,15.4176106,134.6,134.55,12.0576106]
[1764004897277,0.1,134.74,134.73,1.99999999]
[1764004897439,0.1,134.74,134.73,11.78882768]
[1764004897643,0.1,134.74,134.73,23.84643828]
[1764004897971,0.1,134.74,134.73,19.21107959]
[1764004898141,0.1,134.74,134.73,22.63107959]
[1764004898339,0.1,134.74,134.73,74.57890013]
[1764004898567,0.1,134.74,134.73,90.05651073]
[1764004898879,0.1,134.74,134.73,97.92697168]
[1764004900143,0.1,134.75,134.74,1.23285034]
[1764004900344,0.1,134.75,134.74,31.86710917]
[1764004901652,50.00452106,134.91,134.83,1.23285034]
[1764004901653,0.68,134.85,134.83,1.23285034]
[1764004901951,12.0576106,134.84,134.81,1.23285034]
[1764004902285,0.68,134.85,134.83,1.23285034]
[1764004902580,0.76714965,134.94,134.81,9.78882769]
[1764004902581,0.68,134.88,134.84,13.29046094]
[1764004902749,0.68,134.88,134.87,12.0576106]
[1764004903075,0.68,134.88,134.85,1.23285034]
[1764004903285,12.7376106,134.88,134.84,13.29046094]
[1764004903661,0.68,134.87,134.85,12.0576106]
[1764004903979,0.68,134.87,134.85,13.29046094]
[1764004904383,0.68,134.87,134.85,12.0576106]
[1764004904601,0.68,134.91,134.87,1.23285034]
[1764004904890,0.68,134.91,134.87,13.29046094]
[1764004905082,12.7376106,134.91,134.86,12.0576106]
[1764004905383,16.308864,134.9,134.87,1.23285034]
[1764004905583,16.988864,134.9,134.85,1.23285034]
[1764004905884,16.988864,134.9,134.87,11.02167803]
[1764004906062,0.68,134.9,134.87,11.02167803]
[1764004906266,0.68,134.9,134.89,1.23285034]
[1764004906464,16.77731595,134.92,134.89,1.23285034]
[1764004906673,0.46845195,134.92,134.9,9.78882769]
[1764004906862,0.46845195,134.92,134.91,23.07928863]
[1764004907180,1.13845195,134.92,134.91,1.23285034]
[1764004907409,13.19606255,134.92,134.91,1.23285034]
[1764004907564,0.46845195,134.92,134.91,1.23285034]
[1764004907768,0.46845195,134.92,134.91,12.0576106]
[1764004907965,0.46845195,134.92,134.91,23.07928863]
[1764004908370,1.13845195,134.92,134.91,0.51285034]
[1764004908567,1.13845195,134.92,134.89,0.51285034]
[1764004909183,1.13845195,134.92,134.87,0.51285034]
[1764004909387,8.10636285,134.92,134.87,8.15076124]
[1764004909594,8.3079109,134.91,134.89,0.51285034]
[1764004909766,7.6379109,134.9,134.89,0.51285034]
[1764004910085,7.6379109,134.91,134.89,0.51285034]
[1764004910475,8.10636285,134.92,134.89,0.51285034]
[1764004910783,0.46845195,134.92,134.88,8.15076124]
[1764004911089,0.46845195,134.92,134.89,0.51285034]
[1764004911297,8.77636285,134.92,134.88,0.51285034]
[1764004911597,8.77636285,134.92,134.9,0.51285034]
[1764004911974,0.46845195,134.92,134.9,0.51285034]
[1764004913284,1.12845195,134.92,134.88,0.51285034]
[1764004913470,0.46845195,134.92,134.89,0.51285034]
[1764004913671,8.2979109,134.91,134.89,0.51285034]
[1764004914197,0.66,134.91,134.89,0.51285034]
[1764004914362,8.10636285,134.92,134.89,0.51285034]
[1764004914766,8.10636285,134.92,134.88,7.36656124]
[1764004914968,0.46845195,134.92,134.89,17.42673859]
[1764004915178,0.46845195,134.92,134.91,7.6379109]
[1764004915898,0.46845195,134.92,134.9,7.6379109]
[1764004917192,0.46845195,134.92,134.9,15.05065063]
[1764004917494,0.46845195,134.92,134.9,7.6379109]
[1764004917887,0.46845195,134.92,134.91,8.3479109]
[1764004918263,0.46845195,134.92,134.9,7.6379109]
[1764004918702,0.46845195,134.92,134.9,8.3479109]
[1764004918908,0.46845195,134.92,134.91,17.42673859]
[1764004919608,0.46845195,134.92,134.91,24.83908756]
[1764004919976,0.46845195,134.92,134.91,17.42673859]
[1764004920299,0.46845195,134.92,134.9,17.42673859]
[1764004920609,0.46845195,134.92,134.91,8.3479109]
[1764004920777,0.2,134.95,134.91,8.3479109]
[1764004920778,0.2,134.95,134.92,9.78882769]
[1764004920980,0.2,134.95,134.94,9.78882769]
[1764004921501,0.2,134.95,134.92,9.78882769]
[1764004921502,0.86,134.95,134.92,9.78882769]
[1764004921700,0.86,134.95,134.91,7.6379109]
[1764004921908,0.2,134.95,134.93,7.6379109]
[1764004922201,0.2,134.95,134.91,0.26]
[1764004922390,0.2,134.95,134.93,9.78882769]
[1764004922597,0.2,134.95,134.94,7.6379109]
[1764004923206,0.2,134.95,134.93,17.42673859]
[1764004923505,0.2,134.95,134.94,7.6379109]
[1764004924396,10.7979109,135.0,134.94,71.08673859]
[1764004924397,2.5,135.0,134.94,71.08673859]
[1764004924708,2.5,135.0,134.98,7.6379109]
[1764004924878,2.5,135.0,134.97,7.6379109]
[1764004925195,2.5,135.0,134.97,11.0379109]
[1764004925395,2.5,135.0,134.98,7.6379109]
[1764004925794,2.5,135.0,134.96,7.6379109]
[1764004925983,10.7979109,135.0,134.96,11.0379109]
[1764004926386,2.5,135.0,134.96,11.0379109]
[1764004927114,2.5,135.0,134.97,0.06]
[1764004927115,2.43,135.0,134.97,0.06]
[1764004927293,2.43,135.0,134.99,76.09769169]
[1764004927616,2.43,135.0,134.99,41.14355873]
[1764004927783,2.43,135.0,134.99,17.42673859]
[1764004927989,2.43,135.0,134.99,9.78882769]
[1764004928307,2.43,135.0,134.98,9.78882769]
[1764004928695,2.43,135.0,134.99,13.18882769]
[1764004929017,2.43,135.0,134.99,70.82673859]
[1764004929417,0.1,135.06,135.05,9.78882769]
[1764004929944,0.1,135.06,135.05,37.13560259]
[1764004930281,0.1,135.06,135.05,33.73560259]
[1764004930483,0.1,135.06,135.05,37.13560259]
[1764004930723,0.1,135.06,135.05,25.73969169]
[1764004930893,0.1,135.06,135.05,33.37760259]
[1764004931220,0.1,135.06,135.05,25.73969169]
[1764004931394,0.1,135.06,135.05,9.78882769]
[1764004931725,0.1,135.06,135.05,20.82673859]
[1764004932017,0.1,135.06,135.05,9.78882769]
[1764004932018,0.76,135.06,135.05,9.78882769]
[1764004932222,0.1,135.06,135.05,9.78882769]
[1764004932456,0.76,135.06,135.0,9.78882769]
[1764004932721,0.76,135.06,135.02,9.78882769]
[1764004932882,7.6379109,135.05,135.02,9.78882769]
[1764004933220,0.1,135.06,135.04,17.42673859]
[1764004933407,0.1,135.06,135.05,17.42673859]
[1764004933784,0.1,135.06,135.05,9.78882769]
[1764004934221,0.1,135.06,135.04,7.6379109]
[1764004934410,0.1,135.06,135.02,9.78882769]
[1764004934619,8.3979109,135.06,135.02,9.78882769]
[1764004934788,0.76,135.06,135.02,17.42673859]
[1764004934983,0.1,135.06,135.03,7.6379109]
[1764004935200,0.76,135.06,135.02,17.42673859]
[1764004935387,0.1,135.06,135.04,7.6379109]
[1764004935587,0.1,135.06,135.03,7.6379109]
[1764004935990,0.1,135.06,135.04,7.6379109]
[1764004936288,0.1,135.06,135.03,17.42673859]
[1764004936485,8.3979109,135.06,135.02,3.4]
[1764004936718,7.6379109,135.04,134.98,13.18882769]
[1764004936895,7.6379109,135.04,135.0,9.78882769]
[1764004937406,0.66,135.03,134.98,17.42673859]
[1764004937611,0.1,135.06,134.99,9.78882769]
[1764004937817,0.76,135.06,135.02,7.6379109]
[1764004937992,0.76,135.06,135.01,9.78882769]
[1764004938190,0.76,135.06,135.02,7.6379109]
[1764004938596,0.76,135.06,135.01,9.78882769]
[1764004938825,0.76,135.06,135.03,17.42673859]
[1764004938997,0.1,135.06,135.03,17.42673859]
[1764004939196,0.1,135.06,135.04,7.6379109]
[1764004939405,0.1,135.06,135.05,9.78882769]
[1764004939588,0.1,135.06,135.05,24.83140352]
[1764004940320,0.1,135.06,135.05,17.19349262]
[1764004940497,0.1,135.06,135.05,74.83140352]
[1764004941089,0.1,135.06,135.05,24.83140352]
[1764004941293,0.1,135.06,135.05,78.23140352]
[1764004941801,31.41749427,135.12,135.06,9.78882769]
[1764004941999,32.07749427,135.12,135.08,7.6379109]
[1764004942216,32.07749427,135.12,135.09,9.78882769]
[1764004942418,0.66,135.11,135.08,3.4]
[1764004942717,8.2979109,135.11,135.08,9.78882769]
[1764004942896,0.66,135.11,135.08,9.78882769]
[1764004943214,0.66,135.11,135.07,9.78882769]
[1764004943418,0.66,135.11,135.07,7.6379109]
[1764004943620,0.66,135.11,135.08,9.78882769]
[1764004944305,0.66,135.11,135.08,17.42673859]
[1764004944516,39.05540517,135.12,135.08,17.42673859]
[1764004944517,31.41749427,135.12,135.08,17.42673859]
[1764004944719,7.6379109,135.09,135.07,9.78882769]
[1764004944913,7.6379109,135.09,135.05,15.04239357]
[1764004945128,0.66,135.08,135.06,9.78882769]
[1764004945332,0.66,135.08,135.04,38.22091093]
[1764004945333,7.6379109,135.07,135.02,7.6379109]
[1764004945634,7.6379109,135.07,134.99,50.0]
[1764004945635,7.6379109,135.04,135.0,7.6379109]
[1764004946014,0.66,135.03,135.0,7.6379109]
[1764004946231,0.66,135.03,135.01,9.78882769]
[1764004947018,7.6379109,135.06,135.01,7.6379109]
[1764004947215,7.6379109,135.08,135.04,7.6379109]
[1764004947723,0.66,135.07,135.04,9.78882769]
[1764004948115,39.71540517,135.12,135.07,9.78882769]
[1764004948315,0.66,135.11,135.07,17.42673859]
[1764004948513,8.2979109,135.11,135.07,17.42673859]
[1764004948757,31.41749427,135.12,135.09,7.6379109]
[1764004948914,32.07749427,135.12,135.09,7.6379109]
[1764004949240,0.66,135.11,135.09,9.78882769]
[1764004949443,31.41749427,135.12,135.11,17.19020434]
[1764004949739,31.41749427,135.12,135.1,3.38]
[1764004949913,32.07749427,135.12,135.09,11.0179109]
[1764004950113,32.07749427,135.12,135.1,9.78882769]
[1764004950314,31.41749427,135.12,135.1,9.78882769]
[1764004950532,31.41749427,135.12,135.09,11.0179109]
[1764004950839,31.41749427,135.12,135.09,9.78882769]
[1764004951026,7.6379109,135.1,135.06,7.6379109]
[1764004951320,7.6379109,135.07,135.02,7.40631017]
[1764004951535,7.6379109,135.08,135.04,7.40521327]
[1764004951838,31.41749427,135.12,135.06,7.6379109]
[1764004952044,31.41749427,135.12,135.08,7.6379109]
[1764004952241,31.41749427,135.12,135.09,9.78882769]
[1764004952740,31.41749427,135.12,135.1,7.6379109]
[1764004953125,31.41749427,135.12,135.11,9.78882769]
[1764004953458,32.07749427,135.12,135.09,11.0179109]
[1764004953656,32.07749427,135.12,135.1,7.4019245]
[1764004953826,32.07749427,135.12,135.11,7.6379109]
[1764004953827,31.41749427,135.12,135.11,7.6379109]
[1764004954162,31.41749427,135.12,135.1,15.0398354]
[1764004954446,31.41749427,135.12,135.11,17.42673859]
[1764004955040,31.41749427,135.12,135.11,9.78882769]
[1764004955345,31.41749427,135.12,135.11,13.16882769]
[1764004955513,31.41749427,135.12,135.11,17.19020434]
[1764004955713,31.41749427,135.12,135.11,9.78882769]
[1764004955934,31.41749427,135.12,135.11,17.42673859]
[1764004956447,31.41749427,135.12,135.11,20.82673859]
[1764004956622,31.41749427,135.12,135.11,70.82673859]
[1764004956823,31.41749427,135.12,135.11,59.78882769]
[1764004957019,31.41749427,135.12,135.11,70.80673859]
[1764004957219,7.6379109,135.19,135.14,9.78882769]
[1764004957453,7.6379109,135.18,135.15,3.38]
[1764004957747,7.6379109,135.17,135.15,3.38]
[1764004957956,16.308864,135.25,135.15,3.38]
[1764004958120,16.308864,135.25,135.16,9.78882769]
[1764004958121,3.38,135.25,135.16,9.78882769]
[1764004958322,3.38,135.25,135.16,13.16882769]
[1764004958754,7.6379109,135.19,135.16,13.16882769]
[1764004959328,0.66,135.23,135.16,3.38]
[1764004959850,7.6379109,135.18,135.16,10.77822015]
[1764004960082,7.6379109,135.18,135.16,7.39822015]
[1764004960250,0.66,135.23,135.16,7.39822015]
[1764004960584,0.66,135.23,135.12,7.63010508]
[1764004960871,0.66,135.23,135.15,17.42673859]
[1764004961072,7.6379109,135.2,135.16,3.38]
[1764004961257,0.66,135.23,135.16,3.38]
[1764004961577,7.6379109,135.18,135.16,3.38]
[1764004961751,7.6379109,135.18,135.16,10.77828843]
[1764004962272,0.66,135.23,135.16,10.77828843]
[1764004962474,7.6379109,135.18,135.16,3.38]
[1764004962849,0.66,135.23,135.16,10.77861896]
[1764004963077,7.6379109,135.18,135.16,7.39861896]
[1764004963392,0.66,135.23,135.16,7.39861896]
[1764004963546,0.66,135.23,135.15,3.38]
[1764004963547,7.6379109,135.2,135.13,3.38]
[1764004963745,7.6379109,135.2,135.13,10.78028121]
[1764004963964,7.6379109,135.15,135.13,7.40028121]
[1764004964278,0.66,135.19,135.08,7.40302043]
[1764004964455,0.66,135.19,135.11,7.6379109]
[1764004964456,7.6379109,135.15,135.11,7.6379109]
[1764004964777,7.6379109,135.16,135.12,9.78882769]
[1764004965072,7.6379109,135.17,135.12,17.42673859]
[1764004965282,0.66,135.19,135.13,3.38]
[1764004965461,7.6379109,135.17,135.14,9.78882769]
[1764004965663,7.6379109,135.16,135.12,18.50193943]
[1764004965862,7.6379109,135.16,135.13,13.16882769]
[1764004966057,7.6379109,135.17,135.13,20.80673859]
[1764004966383,7.6379109,135.2,135.15,7.6379109]
[1764004966951,0.66,135.22,135.15,7.6379109]
[1764004967148,7.6379109,135.19,135.14,7.6379109]
[1764004967373,7.6379109,135.19,135.15,3.38]
[1764004967673,7.6379109,135.19,135.14,11.0179109]
[1764004967858,7.6379109,135.2,135.15,15.03709698]
[1764004968050,0.66,135.22,135.16,9.78882769]
[1764004968250,8.3079109,135.21,135.16,13.16882769]
[1764004968763,8.3079109,135.2,135.15,25.8971513]
[1764004968954,8.3079109,135.2,135.16,3.38]
[1764004969568,0.67,135.2,135.16,3.38]
[1764004969981,8.3079109,135.22,135.17,7.39809129]
[1764004970166,0.67,135.2,135.17,7.39809129]
[1764004970860,0.67,135.2,135.12,7.40082889]
[1764004971179,16.308864,135.24,135.15,11.91599674]
[1764004971471,11.91599674,135.2,135.15,3.38]
[1764004971792,0.1,135.26,135.17,66.308864]
[1764004971966,0.67,135.24,135.19,11.91599674]
[1764004972163,11.91599674,135.21,135.12,59.12176385]
[1764004972473,11.91599674,135.22,135.16,11.91599674]
[1764004972670,11.91599674,135.21,135.16,11.91599674]
[1764004972864,0.67,135.25,135.15,11.91599674]
[1764004973070,11.91599674,135.2,135.13,29.28031754]
[1764004973274,11.91599674,135.17,135.11,11.91599674]
[1764004973470,12.58599674,135.16,135.1,11.91599674]
[1764004973856,0.67,135.15,135.1,19.31754279]
[1764004974250,0.67,135.15,135.05,11.91599674]
[1764004974450,11.91599674,135.13,135.07,11.91599674]
[1764004974651,11.91599674,135.13,135.03,50.65]
[1764004974652,11.91599674,135.13,135.08,11.91599674]
[1764004974880,0.67,135.13,135.09,11.91599674]
[1764004975081,0.67,135.13,135.1,11.91599674]
[1764004975290,0.67,135.15,135.1,11.91599674]
[1764004975584,0.67,135.14,135.07,9.78882769]
[1764004975760,0.67,135.14,135.1,11.91599674]
[1764004975962,12.58599674,135.14,135.09,11.91599674]
[1764004976261,11.91599674,135.13,135.06,3.4]
[1764004976577,12.58599674,135.13,135.08,11.91599674]
[1764004976889,0.67,135.12,135.08,11.91599674]
[1764004977058,0.67,135.12,135.09,11.91599674]
[1764004977260,0.67,135.12,135.08,11.91599674]
[1764004978188,0.67,135.15,135.11,11.91599674]
[1764004978499,11.91599674,135.15,135.06,50.0]
[1764004978659,0.67,135.17,135.13,11.91599674]
[1764004979359,12.58599674,135.17,135.11,11.91599674]
[1764004979557,11.91599674,135.16,135.1,11.91599674]
[1764004979762,0.67,135.16,135.11,11.91599674]
[1764004979973,0.67,135.15,135.11,19.31725643]
[1764004980158,0.67,135.15,135.11,11.91599674]
[1764004980356,12.58599674,135.15,135.1,11.91599674]
[1764004980587,12.58599674,135.18,135.13,11.91599674]
[1764004980765,0.67,135.22,135.17,11.91599674]
[1764004981083,0.67,135.22,135.14,3.4]
[1764004981084,0.67,135.21,135.15,9.78882769]
[1764004981260,0.67,135.21,135.14,11.91599674]
[1764004981459,0.67,135.21,135.16,11.91599674]
[1764004981659,12.58599674,135.21,135.16,11.91599674]
[1764004982086,0.67,135.2,135.16,11.91599674]
[1764004982462,12.58599674,135.2,135.15,19.31493444]
[1764004982674,11.91599674,135.18,135.12,7.40064801]
[1764004982975,11.91599674,135.18,135.13,11.91599674]
[1764004983188,12.58599674,135.18,135.13,11.91599674]
[1764004983393,0.67,135.17,135.13,11.91599674]
[1764004983713,11.91599674,135.15,135.09,16.308864]
[1764004983885,11.91599674,135.14,135.09,28.22486074]
[1764004984391,0.67,135.13,135.09,11.91599674]
[1764004984906,0.67,135.16,135.12,11.91599674]
[1764004985267,11.91599674,135.15,135.08,7.40291687]
[1764004985467,11.91599674,135.15,135.09,9.78882769]
[1764004985691,0.67,135.16,135.12,11.91599674]
[1764004986400,0.67,135.16,135.13,11.91599674]
[1764004986592,0.67,135.16,135.11,9.78882769]
[1764004986910,11.91599674,135.15,135.1,37.82273249]
[1764004987205,0.67,135.16,135.09,11.91599674]
[1764004987206,11.91599674,135.14,135.09,11.91599674]
[1764004987395,11.91599674,135.14,135.1,11.91599674]
[1764004987785,0.67,135.14,135.11,11.91599674]
[1764004988207,11.91599674,135.16,135.12,11.91599674]
[1764004988510,11.91599674,135.16,135.11,19.3169844]
[1764004988511,0.67,135.15,135.11,19.3169844]
[1764004988815,11.91599674,135.14,135.09,11.91599674]
[1764004989100,0.67,135.15,135.08,11.91599674]
[1764004989280,11.91599674,135.13,135.09,11.91599674]
[1764004989681,0.67,135.12,135.09,11.91599674]
[1764004990283,12.58599674,135.12,135.06,17.19294437]
[1764004990616,11.91599674,135.11,135.07,11.91599674]
[1764004990786,11.91599674,135.11,135.06,17.19294437]
[1764004990787,12.58599674,135.11,135.06,19.32011342]
[1764004990986,0.67,135.1,135.06,7.40411668]
[1764004991192,12.58599674,135.1,135.06,7.40411668]
[1764004991393,12.58599674,135.1,135.04,34.82181322]
[1764004991394,0.67,135.1,134.99,50.65]
[1764004991594,16.308864,135.13,135.03,11.91599674]
[1764004991595,0.67,135.09,135.03,11.91599674]
[1764004991789,11.91599674,135.07,135.02,11.91599674]
[1764004991989,11.91599674,135.07,135.03,11.91599674]
[1764004992202,0.67,135.06,135.02,11.91599674]
[1764004992427,0.67,135.06,135.02,7.40583271]
[1764004992718,12.58599674,135.06,135.0,7.40733222]
[1764004993022,0.67,135.06,135.01,11.91599674]
[1764004993330,11.91599674,135.1,135.05,11.91599674]
[1764004993499,11.91599674,135.11,135.07,11.91599674]
[1764004993688,11.91599674,135.12,135.04,60.43882769]
[1764004994022,12.58599674,135.12,135.08,11.91599674]
[1764004994516,12.58599674,135.11,135.05,7.40466493]
[1764004994698,0.67,135.11,135.06,11.91599674]
[1764004994904,12.58599674,135.11,135.07,11.91599674]
[1764004995087,164.4,135.19,135.05,25.91632727]
[1764004995088,164.4,135.19,135.06,60.43882769]
[1764004995294,0.67,135.11,135.05,29.31632727]
[1764004995518,0.67,135.11,135.08,11.91599674]
[1764004995717,0.67,135.11,135.07,11.91599674]
[1764004996013,0.67,135.11,135.08,11.91599674]
[1764004996521,0.67,135.11,135.08,19.31898203]
[1764004996931,12.58599674,135.14,135.08,7.40298529]
[1764004997100,11.91599674,135.14,135.1,11.91599674]
[1764004997303,0.67,135.13,135.1,11.91599674]
[1764004997598,0.67,135.13,135.09,11.91599674]
[1764004998416,11.91599674,135.11,135.05,7.40454771]
[1764004998725,3.38,135.12,135.04,11.91599674]
[1764004998906,4.05,135.12,135.05,11.91599674]
[1764004999104,12.58599674,135.11,135.06,11.91599674]
[1764004999306,12.58599674,135.11,135.07,11.91599674]
[1764004999508,0.67,135.11,135.07,11.91599674]
[1764004999703,0.67,135.1,135.07,11.91599674]
[1764005000016,12.58599674,135.1,135.05,11.91599674]
[1764005000196,12.58599674,135.1,135.05,19.32062815]
[1764005000397,0.67,135.09,135.05,19.32062815]
[1764005001017,12.58599674,135.11,135.07,11.91599674]
[1764005001219,0.67,135.11,135.07,11.91599674]
[1764005001401,12.58599674,135.13,135.09,11.91599674]
[1764005001712,0.67,135.13,135.1,11.91599674]
[1764005002220,0.67,135.15,135.12,7.40082889]
[1764005002425,0.67,135.14,135.11,19.31716404]
[1764005002792,16.308864,135.19,135.11,19.31716404]
[1764005003022,0.71,135.17,135.08,9.78882769]
[1764005003192,11.91599674,135.16,135.09,25.9085]
[1764005003507,11.91599674,135.15,135.11,11.91599674]
[1764005003711,3.38,135.18,135.09,25.9085]
[1764005003712,11.91599674,135.14,135.1,11.91599674]
[1764005004224,11.91599674,135.12,135.07,11.91599674]
[1764005004396,19.688864,135.11,135.02,11.91599674]
[1764005004599,11.91599674,135.08,135.03,11.91599674]
[1764005004826,11.91599674,135.07,135.03,11.91599674]
[1764005005002,0.71,135.1,135.0,11.91599674]
[1764005005003,11.91599674,135.05,135.0,11.91599674]
[1764005005201,11.91599674,135.05,134.97,26.58168851]
[1764005005202,11.91599674,135.03,134.98,11.91599674]
[1764005005603,0.71,135.02,134.98,11.91599674]
[1764005005929,0.71,135.02,134.97,7.40905386]
[1764005005930,12.62599674,135.02,134.97,11.91599674]
[1764005006145,11.91599674,135.01,134.96,0.2]
[1764005006307,0.71,135.01,134.97,11.91599674]
[1764005006508,0.71,135.01,134.98,11.91599674]
[1764005008332,0.71,135.01,134.98,19.32437649]
[1764005008536,0.71,135.03,134.99,11.91599674]
[1764005008842,0.71,135.03,135.0,11.91599674]
[1764005009029,0.71,135.03,134.99,11.91599674]
[1764005009402,0.71,135.03,135.0,11.91599674]
[1764005009604,0.71,135.05,135.01,11.91599674]
[1764005009827,0.71,135.04,135.01,11.91599674]
[1764005010333,12.62599674,135.04,134.97,10.80853094]
[1764005010628,12.62599674,135.04,134.99,11.91599674]
[1764005010940,12.62599674,135.03,134.98,11.91599674]
[1764005011105,0.71,135.03,134.99,11.91599674]
[1764005011302,0.71,135.02,134.99,11.91599674]
[1764005011936,0.71,135.02,134.99,19.32393093]
[1764005012524,0.71,135.02,134.99,11.91599674]
[1764005012734,0.71,135.02,134.98,19.32429307]
[1764005012929,0.71,135.02,134.99,11.91599674]
[1764005013133,0.71,135.04,135.01,11.91599674]
[1764005013320,12.62599674,135.05,135.01,11.91599674]
[1764005013523,12.62599674,135.05,135.0,11.91599674]
[1764005013734,12.62599674,135.04,134.99,11.91599674]
[1764005014111,0.71,135.03,134.99,11.91599674]
[1764005014306,11.91599674,135.02,134.96,0.2]
[1764005014534,11.91599674,135.02,134.98,11.91599674]
[1764005014712,3.4,135.06,134.98,11.91599674]
[1764005014713,0.71,135.01,134.98,11.91599674]
[1764005014917,0.71,135.01,134.99,11.91599674]
[1764005015438,12.62599674,135.01,134.96,12.11599674]
[1764005015624,12.62599674,135.01,134.96,19.52557501]
[1764005015934,0.71,135.0,134.96,19.52557501]
[1764005016123,0.71,135.0,134.96,7.60957827]
[1764005016321,0.71,135.0,134.96,19.52557501]
[1764005016507,0.71,135.0,134.97,11.91599674]
[1764005016706,12.62599674,135.0,134.96,12.11599674]
[1764005016908,11.91599674,134.97,134.96,0.2]
[1764005017310,12.62599674,134.97,134.96,0.2]
[1764005017627,12.62599674,134.97,134.91,0.2]
[1764005017628,0.71,134.96,134.91,0.2]
[1764005017940,12.62599674,134.92,134.91,0.2]
[1764005018744,0.71,134.95,134.91,19.5283417]
[1764005019045,12.62599674,134.95,134.91,19.5283417]
[1764005019428,0.71,134.94,134.91,19.5283417]
[1764005019639,16.308864,134.99,134.92,0.69]
[1764005019640,0.71,134.98,134.92,0.69]
[1764005019938,12.62599674,134.98,134.94,11.91599674]
[1764005020152,0.71,134.98,134.94,11.91599674]
[1764005020353,12.62599674,134.97,134.92,19.32765352]
[1764005020525,0.71,134.97,134.93,11.91599674]
[1764005020943,0.71,134.97,134.94,11.91599674]
[1764005021249,0.71,134.97,134.93,11.91599674]
[1764005022133,0.71,134.97,134.94,11.91599674]
[1764005022931,0.71,134.97,134.93,19.32699849]
[1764005023463,0.71,134.97,134.94,11.91599674]
[1764005023753,3.38,135.0,134.96,11.91599674]
[1764005023923,15.29599674,135.01,134.96,11.91599674]
[1764005024246,12.62599674,134.99,134.93,7.41118106]
[1764005024447,11.91599674,134.98,134.91,0.2]
[1764005024620,11.91599674,134.97,134.93,11.91599674]
[1764005024950,12.62599674,134.97,134.93,11.91599674]
[1764005025122,0.71,134.96,134.92,11.91599674]
[1764005025324,11.91599674,134.95,134.91,0.2]
[1764005025523,12.62599674,134.96,134.91,12.11599674]
[1764005025749,4.09,134.95,134.91,0.2]
[1764005026129,0.71,134.94,134.91,0.2]
[1764005026337,11.91599674,134.93,134.91,0.2]
[1764005026924,0.71,134.92,134.91,0.2]
[1764005028047,12.60599674,134.94,134.91,0.2]
[1764005028359,15.29599674,134.95,134.91,0.2]
[1764005028656,0.69,134.95,134.91,12.11599674]
[1764005028862,0.69,134.95,134.92,11.91599674]
[1764005029446,12.60599674,134.95,134.91,0.2]
[1764005029647,0.69,134.95,134.91,12.11599674]
[1764005029852,0.69,134.94,134.91,12.11599674]
[1764005030043,0.69,134.95,134.91,0.2]
[1764005030251,0.69,134.95,134.91,12.11599674]
[1764005030451,12.60599674,134.95,134.91,12.11599674]
[1764005030763,0.69,134.95,134.91,15.24471269]
[1764005031072,0.69,134.94,134.91,15.24471269]